Cogmind - Beta 12 X1 @@@ ROGUE MODE // 2022.07.26 @ 11:02:17 Player: Exp. Geonium Core Result: Destroyed by H-66 Slayer with Gauss Rifle Performance ------------- Evolutions (5) 2500 Regions Visited (20) 4000 Robots Destroyed (130) 650 Value Destroyed (6942) 6942 Prototype IDs (28) 560 Alien Tech Used (0) 0 Bonus (4392) 4392 TOTAL SCORE: 19044 Bonus ------- High Alert Combat Kills 481 Follower Combat Kills 1646 Entered Garrisons 1400 Used RIF Installer 3000 Aligned with FarCom 300 Friendly Fire -2435 Cogmind --------- Core Integrity 0/1000 Matter 300/300 Energy 100/100 System Corruption 3% Temperature Cool (2) Movement Flying (35) Location -5/Upper Caves Parts ------- > --- POWER (1) -------- (None) > --- PROPULSION (2) --- VTOL Module > --- UTILITY (12) ----- Relay Coupler [Swarmer] (37) Relay Coupler [Swarmer] (31) Relay Coupler [Grunt] (13) Relay Coupler [Duelist] (31) Relay Coupler [Sentry] (13) Relay Coupler [Hunter] (18) Relay Coupler [Hunter] (14) Relay Coupler [Behemoth] (10) > --- WEAPON (2) ------- (None) > --- INVENTORY (5) ---- Light Nuclear Core Relay Coupler [NC] (24) Relay Coupler [Sentry] (19) Relay Coupler [Specialist] (26) Relay Coupler [Heavy] (14) Peak State ------------ > --- POWER ------------ Neutrino Core > --- PROPULSION ------- Enhanced Armored Leg Biometal Leg > --- UTILITY ---------- Medium Storage Unit Hacking Suite Relay Coupler [NC] Relay Coupler [Swarmer] Relay Coupler [Sentry] Relay Coupler [Sentry] Relay Coupler [Sentry] Relay Coupler [Hunter] Relay Coupler [Hunter] Relay Coupler [Heavy] Relay Coupler [Behemoth] Relay Coupler [Behemoth] > --- WEAPON ----------- Improved Remote Datajack Longsword +1 > --- INVENTORY -------- Improved Treads Compact Wheel Antigrav System Antigrav System Advanced Visual Processing Unit Relay Coupler [Sentry] Relay Coupler [Hunter] Axe [Rating: 86] Favorites ----------- Power Neutrino Core Engine Ion Engine Power Core Neutrino Core Propulsion Heavy Treads Treads Heavy Treads Leg Carbon-fiber Leg Wheel Wheel Hover Unit Antigrav System Flight Unit VTOL Module Utility Hacking Suite Device Improved Heat Sink Storage Large Storage Unit Processor Signal Interpreter Hackware Hacking Suite Protection Improved Light Armor Plating Weapon Longsword +1 Energy Cannon Guided Plasma Cannon Ballistic Gun Gauss Rifle Launcher Rocket Launcher Special Weapon Remote Datajack Slashing Weapon Longsword +1 Build | -11 -10 -10 -10 -9 -8 -8 -8 -8 -7 -7 -7 -7 -6 -6 -6 -6 -5 -5 -5 -5 ------- Run | Scr Mat Min Exi Min Mat Gar Mat Gar Fac Gar Fac Gar Fac Gar Fac Gar Fac Gar Fac Upp Slots Evolved 10 | . . . . . 4 . . . 2 . . . 2 . . . 2 . . . Power . | . . . . . . . . . . . . . . . . . . . . . Propulsion . | . . . . . . . . . . . . . . . . . . . . . Utility 10 | . . . . . 4 . . . 2 . . . 2 . . . 2 . . . Weapon . | . . . . . . . . . . . . . . . . . . . . . Parts Attached 168 | 2 3 . 1 2 25 23 . 1 12 2 8 2 13 11 8 25 12 18 . . Power 10 | . . . . . 2 3 . . . . . . 1 . . 1 2 1 . . Engine 2 | . . . . . . 1 . . . . . . . . . 1 . . . . Core 8 | . . . . . 2 2 . . . . . . 1 . . . 2 1 . . Reactor . | . . . . . . . . . . . . . . . . . . . . . Propulsion 33 | 2 . . . 1 4 3 . . . . . . 1 2 5 5 4 6 . . Treads 13 | 1 . . . 1 4 3 . . . . . . . 2 . 2 . . . . Leg 4 | . . . . . . . . . . . . . . . . 2 2 . . . Wheel 7 | 1 . . . . . . . . . . . . . . 5 1 . . . . Hover 6 | . . . . . . . . . . . . . 1 . . . 2 3 . . Flight 3 | . . . . . . . . . . . . . . . . . . 3 . . Utility 69 | . 2 . 1 . 7 5 . . 6 2 4 2 7 3 3 13 5 9 . . Device 4 | . . . . . 1 . . . . . . . . 1 . 2 . . . . Storage 4 | . 1 . . . . 1 . . . . . . 1 . 1 . . . . . Processor 7 | . . . . . 4 1 . . 1 . . . . . . . . 1 . . Hackware 50 | . . . 1 . 2 3 . . 4 2 4 2 6 2 2 9 5 8 . . Protection 4 | . 1 . . . . . . . 1 . . . . . . 2 . . . . Artifact . | . . . . . . . . . . . . . . . . . . . . . Weapon 56 | . 1 . . 1 12 12 . 1 6 . 4 . 4 6 . 6 1 2 . . Energy Gun . | . . . . . . . . . . . . . . . . . . . . . Energy Cannon 12 | . . . . . . 3 . 1 2 . 2 . 1 3 . . . . . . Ballistic Gun 15 | . 1 . . 1 8 5 . . . . . . . . . . . . . . Ballistic Cannon . | . . . . . . . . . . . . . . . . . . . . . Launcher 5 | . . . . . 3 2 . . . . . . . . . . . . . . Special Weapon 13 | . . . . . . 1 . . 4 . . . 1 2 . 3 1 1 . . Impact Weapon . | . . . . . . . . . . . . . . . . . . . . . Slashing Weapon 11 | . . . . . 1 1 . . . . 2 . 2 1 . 3 . 1 . . Piercing Weapon . | . . . . . . . . . . . . . . . . . . . . . Special Melee Weapon . | . . . . . . . . . . . . . . . . . . . . . Unidentified Prototypes 2 | . . . . . 1 . . . . . . . . . . . 1 . . . Parts Lost 52 | . . . . . 3 4 . 1 . . . 1 4 4 . 11 8 16 . . Power 6 | . . . . . 1 1 . . . . . . 1 . . 1 1 1 . . Propulsion 13 | . . . . . 1 1 . . . . . . . . . 3 2 6 . . Utility 22 | . . . . . . . . 1 . . . 1 3 3 . 4 4 6 . . Weapon 11 | . . . . . 1 2 . . . . . . . 1 . 3 1 3 . . Highest Loss Streak 12 | . . . . . 2 3 . 1 . . . 1 3 4 . 6 4 12 . . To Critical Strikes 1 | . . . . . . . . . . . . . . . . 1 . . . . Average Slot Usage (%) 89 | . 92 100 100 100 99 85 90 88 80 88 89 92 81 92 96 84 93 87 52 52 Engine 1 | . 14 14 14 14 . . . . . . . . . . . 3 1 . . . Core 5 | . . . . . 7 5 9 9 7 7 7 7 5 6 6 1 3 3 . . Treads 7 | . 14 14 14 14 14 12 9 9 7 7 7 7 4 8 5 2 . . . . Wheel 2 | . 14 14 14 14 3 . . . . . . . . . 4 5 1 . . . Storage 7 | . 14 14 14 14 9 6 9 9 7 7 7 7 6 6 6 6 5 4 . . Processor 5 | . . . . . 21 14 9 9 7 2 . . . . . . . 1 . . Hackware 39 | . . . 6 14 23 32 36 34 31 46 50 53 48 53 58 42 60 56 47 47 Ballistic Gun 4 | . 28 28 28 28 11 8 . . . . . . . . . . . . . . Special Weapon 3 | . . . . . . . 9 2 6 7 7 7 5 3 6 3 4 2 . . Slashing Weapon 5 | . . . . . 5 2 9 9 7 7 4 7 5 4 6 8 5 5 . . Naked Turns . | . . . . . . . . . . . . . . . . . . . . . Heaviest Build 50 | 12 29 29 29 28 34 50 40 47 47 40 47 40 40 29 26 35 32 22 . . Greatest Support 70 | 10 10 10 10 10 43 70 70 70 70 70 70 70 70 54 54 40 48 23 4 4 Greatest Overweight (x) 4 | 1 2 2 2 2 3 1 . . . . . . 1 1 . 1 . 4 . . Average Overweight (x) . | 1 1 2 2 2 1 . . . . . . . . . . . . . . . Largest Inventory Capacity 15 | 8 15 15 15 15 15 15 15 15 15 15 15 15 15 10 10 10 10 10 5 5 Average Capacity 13 | 8 14 15 15 15 15 12 15 15 15 15 15 15 14 10 10 10 10 9 5 5 Most Carried 15 | 6 9 9 15 15 15 15 13 15 15 15 15 15 15 10 10 10 10 10 5 5 Average Carried 11 | 4 6 8 11 14 14 11 13 14 13 12 12 12 12 8 9 8 8 8 5 5 Final Capacity 15 | 8 15 15 15 15 15 15 15 15 15 15 15 15 10 10 10 10 10 5 5 5 Final Carried 15 | 4 8 9 15 15 14 13 13 15 10 15 10 13 9 10 9 10 9 5 5 5 Class Distribution -------------------- 33% | Bothacker-Mutant 29% | Hacker-Mutant 24% | Botlord-Mutant 10% | Mutant Dominant Class ---------------- Mutant | -10/Materials Mutant | -10/Mines Mutant | -10/Exiles Mutant | -9/Mines Hacker-Mutant | -8/Materials Hacker-Mutant | -8/Garrison Hacker-Mutant | -8/Materials Bothacker-Mutant | -8/Garrison Bothacker-Mutant | -7/Factory Bothacker-Mutant | -7/Garrison Bothacker-Mutant | -7/Factory Bothacker-Mutant | -7/Garrison Botlord-Mutant | -6/Factory Bothacker-Mutant | -6/Garrison Botlord-Mutant | -6/Factory Botlord-Mutant | -6/Garrison Botlord-Mutant | -5/Factory Botlord-Mutant | -5/Garrison Mutant | -5/Factory Mutant | -5/Upper Caves Resources | -11 -10 -10 -10 -9 -8 -8 -8 -8 -7 -7 -7 -7 -6 -6 -6 -6 -5 -5 -5 -5 ----------- Run | Scr Mat Min Exi Min Mat Gar Mat Gar Fac Gar Fac Gar Fac Gar Fac Gar Fac Gar Fac Upp Matter Collected 3101 | 220 75 . . 18 517 530 . 50 139 . 211 63 170 126 104 441 182 255 . . Remotely . | . . . . . . . . . . . . . . . . . . . . . Salvage Created 5078 | . 160 . . 18 751 680 . 97 277 . 63 34 423 308 362 957 438 510 . . Parts 285 | . 15 . . 1 62 43 . 3 14 . 7 2 20 27 12 41 15 23 . . Haulers Intercepted . | . . . . . . . . . . . . . . . . . . . . . Recyclers Shooed 7 | . 1 . . . . . . . . . 2 . 1 . 1 . 2 . . . Parts Field Recycled . | . . . . . . . . . . . . . . . . . . . . . Retrieved Matter . | . . . . . . . . . . . . . . . . . . . . . Parts Self-Destructed . | . . . . . . . . . . . . . . . . . . . . . Prevented . | . . . . . . . . . . . . . . . . . . . . . Kills | -11 -10 -10 -10 -9 -8 -8 -8 -8 -7 -7 -7 -7 -6 -6 -6 -6 -5 -5 -5 -5 ------- Run | Scr Mat Min Exi Min Mat Gar Mat Gar Fac Gar Fac Gar Fac Gar Fac Gar Fac Gar Fac Upp Combat Hostiles Destroyed 107 | . 4 . . 1 23 23 . 2 6 . 1 1 4 11 1 15 3 12 . . Melee 49 | . . . . . 2 6 . . 2 . . 1 2 5 1 15 3 12 . . Guns 21 | . 4 . . 1 10 6 . . . . . . . . . . . . . . Cannons 15 | . . . . . . 1 . 2 4 . . . 2 6 . . . . . . AOE 21 | . . . . . 11 10 . . . . . . . . . . . . . . Classes Destroyed 17 | . 3 . . . 4 3 . . . . 1 . 2 1 . . 2 1 . . Worker 5 | . . . . . 2 . . . . . . . 2 . 1 . . . . . Builder 3 | . . . . . 2 . . . . . 1 . . . . . . . . . Recycler 4 | . . . . . . . . . . . . . 1 . 2 . 1 . . . Operator 2 | . 1 . . . 1 . . . . . . . . . . . . . . . Watcher 1 | . . . . . . . . . . . . . . . . . . 1 . . Swarmer 41 | . 1 . . 1 9 8 . . 3 . . . . 7 . 5 . 7 . . Cutter 3 | . . . . . . . . . . . . . . 3 . . . . . . Grunt 33 | . 3 . . . 5 6 . 2 3 . . . 1 . 1 9 1 2 . . Brawler 3 | . . . . . . . . . . . . . 2 . . 1 . . . . Protector 1 | . . . . . . 1 . . . . . . . . . . . . . . Sentry 14 | . . . . . 8 . . . . . . . . . . 3 2 1 . . Demolisher 3 | . . . . . . 1 . . . . . 1 . . . 1 . . . . Specialist 5 | . . . . . . 5 . . . . . . . . . . . . . . Hunter 6 | . . . . . 1 2 . . 1 . . . . 1 . . . 1 . . Programmer 4 | . . . . . . . . . . . 1 . 1 . . 1 . 1 . . Heavy 1 | . . . . . . . . . . . . . . . . . 1 . . . Behemoth 1 | . . . . . . . . . . . . . . . . . 1 . . . Best Kill Streak 11 | . 2 . . 1 8 11 . 2 3 . 1 1 4 10 2 5 2 5 . . Combat Bots Only 11 | . 1 . . 1 6 11 . 2 3 . 1 1 3 10 1 5 1 5 . . Max Kills in Single Turn 4 | . 1 . . 1 3 4 . 1 1 . 1 1 1 1 1 1 1 1 . . Gunslinging 1 | . . . . . 1 . . . . . . . . . . . . . . . Exploded 4 | . . . . . 2 4 . . . . . . . . . . . . . . Melee 1 | . . . . . 1 1 . . 1 . . 1 1 1 1 1 1 1 . . Uniques/NPCs Destroyed . | . . . . . . . . . . . . . . . . . . . . . Combat | -11 -10 -10 -10 -9 -8 -8 -8 -8 -7 -7 -7 -7 -6 -6 -6 -6 -5 -5 -5 -5 -------- Run | Scr Mat Min Exi Min Mat Gar Mat Gar Fac Gar Fac Gar Fac Gar Fac Gar Fac Gar Fac Upp Damage Taken 8297 | . 286 . . 59 1083 1352 . . 242 . 225 198 194 605 124 1347 1105 1455 . 22 Core 2303 | . 64 . . 14 205 266 . . 47 . 64 71 96 135 58 269 265 727 . 22 Absorbed by Shields 119 | . . . . . . . . . . . . . . . . 86 . 33 . . Regen/Repaired (Parts) 477 | . . . . . . . . . 269 . . . 208 . . . . . . . Core Remaining (%) 58 | 100 . . . 68 . . . 14 . . . 74 . . . 34 . . . . Volleys Fired 244 | . 23 . . 3 53 40 . 3 28 3 15 4 17 12 6 17 13 7 . . Largest 2 | . 2 . . 2 2 2 . 1 1 1 1 1 1 1 1 1 1 1 . . Hottest 120 | . 40 . . 40 51 120 . 120 120 5 120 5 120 120 5 10 10 7 . . Shots Fired 310 | . 45 . . 6 82 52 . 3 28 3 15 4 17 12 6 17 13 7 . . Gun 155 | . 45 . . 6 70 34 . . . . . . . . . . . . . . Cannon 34 | . . . . . . 8 . 3 7 . 5 . 3 8 . . . . . . Launcher 22 | . . . . . 12 10 . . . . . . . . . . . . . . Special 99 | . . . . . . . . . 21 3 10 4 14 4 6 17 13 7 . . Kinetic 155 | . 45 . . 6 70 34 . . . . . . . . . . . . . . Thermal 34 | . . . . . . 8 . 3 7 . 5 . 3 8 . . . . . . Explosive 22 | . . . . . 12 10 . . . . . . . . . . . . . . Electromagnetic . | . . . . . . . . . . . . . . . . . . . . . Robot Hit Streak 15 | . 6 . . 1 8 8 . . 11 2 6 3 7 9 10 10 15 10 . . Robot Miss Streak 3 | . 3 . . 3 3 1 . . 2 1 2 1 1 2 1 1 1 1 . . Penetration Max 1 | . . . . . 1 . . . . . . . . . . . . . . . Secondary Targets 2 | . 1 . . . 1 . . . . . . . . . . . . . . . Max Gunslinging Chain 1 | . 1 . . . 1 . . . . . . . . . . . . . . . Shots Hit Robots 380 | . 26 . . 1 63 53 . . 25 2 12 8 19 18 12 65 38 38 . . Core Hits 163 | . 11 . . 2 41 34 . 2 6 . 1 1 7 12 3 24 8 11 . . Critical Kills . | . . . . . . . . . . . . . . . . . . . . . Critical Parts Destroyed . | . . . . . . . . . . . . . . . . . . . . . Critical Strikes 18 | . . . . . 1 2 . . . . . 1 . 1 2 7 3 1 . . Destroy 1 | . . . . . . 1 . . . . . . . . . . . . . . Sever 17 | . . . . . 1 1 . . . . . 1 . 1 2 7 3 1 . . Melee Attacks 235 | . . . . . 17 32 . 1 3 4 2 14 9 10 9 63 33 38 . . Impact . | . . . . . . . . . . . . . . . . . . . . . Slashing 235 | . . . . . 17 32 . 1 3 4 2 14 9 10 9 63 33 38 . . Piercing . | . . . . . . . . . . . . . . . . . . . . . Sneak Attacks 61 | . . . . . 3 . . . 3 . 2 5 5 . 7 11 19 6 . . Combat Hostiles 26 | . . . . . . . . . 2 . . 4 2 . 1 2 11 4 . . Follow-up Attacks 8 | . . . . . . . . . . . . . . . . 7 . 1 . . Damage Inflicted 14920 | . 208 . . 22 2413 2749 . 67 553 . 429 410 673 657 658 2661 1821 1599 . . Guns 1636 | . 208 . . 20 821 587 . . . . . . . . . . . . . . Cannons 1102 | . . . . . . 177 . 67 242 . 221 . 103 292 . . . . . . Explosions 2103 | . . . . . 1194 909 . . . . . . . . . . . . . . Melee 10043 | . . . . . 395 1076 . . 303 . 188 410 570 365 658 2661 1821 1596 . . Ramming 36 | . . . . 2 3 . . . 8 . 20 . . . . . . 3 . . Kinetic 1636 | . 208 . . 20 821 587 . . . . . . . . . . . . . . Thermal 1195 | . . . . . 93 177 . 67 242 . 221 . 103 292 . . . . . . Explosive 2010 | . . . . . 1101 909 . . . . . . . . . . . . . . Electromagnetic . | . . . . . . . . . . . . . . . . . . . . . Impact . | . . . . . . . . . . . . . . . . . . . . . Slashing 10043 | . . . . . 395 1076 . . 303 . 188 410 570 365 658 2661 1821 1596 . . Piercing . | . . . . . . . . . . . . . . . . . . . . . Highest Corruption 16 | . . . . . . . . . . . . . 10 15 15 16 2 3 3 3 Average Corruption 10 | . . . . . . . . . . . . . 6 14 15 15 1 2 3 3 Corruption Purged . | . . . . . . . . . . . . . . . . . . . . . Corruption Blocked . | . . . . . . . . . . . . . . . . . . . . . Effects 90 | . . . . . . . . . . . . . 8 12 19 37 . 12 . 2 Message Errors 20 | . . . . . . . . . . . . . 3 4 1 8 . 2 . 2 Matter Fused 19 | . . . . . . . . . . . . . . 3 1 10 . 5 . . Heat Flow Errors 10 | . . . . . . . . . . . . . . 1 6 3 . . . . Energy Discharges 10 | . . . . . . . . . . . . . 3 . 2 5 . . . . Parts Rejected 2 | . . . . . . . . . . . . . . . 1 1 . . . . Data Loss (minor) 18 | . . . . . . . . . . . . . 1 4 3 6 . 4 . . Data Loss (major) 7 | . . . . . . . . . . . . . 1 . 2 3 . 1 . . Alerts 2 | . . . . . . . . . . . . . . . 1 1 . . . . Misdirections 2 | . . . . . . . . . . . . . . . 2 . . . . . Overload Shots . | . . . . . . . . . . . . . . . . . . . . . Overflow Damage 902 | . . . . . 128 77 . . 55 . 26 32 32 17 183 54 97 201 . . Projectiles 30 | . . . . . . . . . . . 26 . . 4 . . . . . . Explosions 74 | . . . . . 73 1 . . . . . . . . . . . . . . Melee 798 | . . . . . 55 76 . . 55 . . 32 32 13 183 54 97 201 . . Knockbacks 1 | . . . . . . . . . 1 . . . . . . . . . . . Impact 1 | . . . . . . . . . 1 . . . . . . . . . . . Kinetic . | . . . . . . . . . . . . . . . . . . . . . Secondary . | . . . . . . . . . . . . . . . . . . . . . Self-Inflicted Damage 159 | . . . . 1 134 23 . . . . . . . . . . . 1 . . Shots 5 | . . . . . 4 1 . . . . . . . . . . . . . . Rammed 7 | . 1 . . 1 1 . . . 1 . 2 . . . . . . 1 . . Targets Rammed 7 | . 1 . . 1 1 . . . 1 . 2 . . . . . . 1 . . Kicked . | . . . . . . . . . . . . . . . . . . . . . Crushed . | . . . . . . . . . . . . . . . . . . . . . Highest Temperature 315 | . 22 . . . 18 282 . 222 204 . 204 . 123 315 268 176 . . . . Average Temperature 96 | . 9 . . . 5 114 . 115 113 . 87 . 52 151 104 72 . . . . Received Heat Transfer 1616 | . 138 . . 9 378 297 . . 30 . 15 18 27 . 27 223 201 253 . . Siege Activations . | . . . . . . . . . . . . . . . . . . . . . Robots Corrupted . | . . . . . . . . . . . . . . . . . . . . . Combat Hostiles . | . . . . . . . . . . . . . . . . . . . . . Parts Fried . | . . . . . . . . . . . . . . . . . . . . . Impact Corruptions . | . . . . . . . . . . . . . . . . . . . . . Robots Melted 1 | . . . . . . . . . . . 1 . . . . . . . . . Combat Hostiles 1 | . . . . . . . . . . . 1 . . . . . . . . . Parts Melted 10 | . . . . . . . . 1 4 . 1 . 3 1 . . . . . . Heat Transferred 2411 | . . . . . 50 361 . 160 560 . 400 . 240 640 . . . . . . Parts Sabotaged . | . . . . . . . . . . . . . . . . . . . . . Parts Stolen . | . . . . . . . . . . . . . . . . . . . . . Parts Stripped . | . . . . . . . . . . . . . . . . . . . . . Power Chain Reactions . | . . . . . . . . . . . . . . . . . . . . . Missiles Intercepted . | . . . . . . . . . . . . . . . . . . . . . Alert | -11 -10 -10 -10 -9 -8 -8 -8 -8 -7 -7 -7 -7 -6 -6 -6 -6 -5 -5 -5 -5 ------- Run | Scr Mat Min Exi Min Mat Gar Mat Gar Fac Gar Fac Gar Fac Gar Fac Gar Fac Gar Fac Upp Peak Influence 1136 | . 135 52 . 119 545 1050 511 485 272 328 369 1136 688 385 293 339 317 495 246 . Initial 596 | . . 52 . . 46 328 511 332 254 89 172 153 596 184 201 65 177 77 246 . Average 347 | . 63 52 . 82 281 764 511 410 201 247 180 687 485 325 221 191 202 311 246 . Maximum Alert Level 4 | . . . . . 2 3 2 2 1 1 1 4 2 1 1 1 1 2 1 . Low Security (%) 27 | 100 100 100 . 100 21 . . . 41 30 47 1 . 10 2 54 53 21 . . Level 1 44 | . . . . . 64 9 . 38 58 69 52 4 35 89 97 45 46 53 100 . Level 2 16 | . . . . . 14 24 100 61 . . . 47 64 . . . . 24 . . Level 3 11 | . . . . . . 66 . . . . . 44 . . . . . . . . Level 4 . | . . . . . . . . . . . . 2 . . . . . . . . Level 5 . | . . . . . . . . . . . . . . . . . . . . . High Security . | . . . . . . . . . . . . . . . . . . . . . Max Security . | . . . . . . . . . . . . . . . . . . . . . Squads Dispatched 15 | . 1 . . . 3 . . . 5 . 3 . . . . . 3 . . . Investigation 3 | . . . . . . . . . 2 . 1 . . . . . . . . . Extermination 3 | . . . . . . . . . 1 . 1 . . . . . 1 . . . Reinforcement 8 | . 1 . . . 2 . . . 2 . 1 . . . . . 2 . . . Assault . | . . . . . . . . . . . . . . . . . . . . . Garrison 1 | . . . . . 1 . . . . . . . . . . . . . . . Intercept . | . . . . . . . . . . . . . . . . . . . . . Searches Triggered . | . . . . . . . . . . . . . . . . . . . . . Construction Impeded 1 | . . . . . 1 . . . . . . . . . . . . . . . Haulers Reinforced 1 | . . . . . . . . . 1 . . . . . . . . . . . Active Scanning Responses . | . . . . . . . . . . . . . . . . . . . . . Cargo Convoy Interrupts . | . . . . . . . . . . . . . . . . . . . . . Alert ID Control Effect 11 | . . . . . . . . . . . . 2 1 . . 4 2 2 . . Stealth | -11 -10 -10 -10 -9 -8 -8 -8 -8 -7 -7 -7 -7 -6 -6 -6 -6 -5 -5 -5 -5 --------- Run | Scr Mat Min Exi Min Mat Gar Mat Gar Fac Gar Fac Gar Fac Gar Fac Gar Fac Gar Fac Upp Distress Signals 11 | . 3 . . . 5 1 . . 1 . . . . . . . 1 . . . Communications Jammed . | . . . . . . . . . . . . . . . . . . . . . Distress Signals . | . . . . . . . . . . . . . . . . . . . . . Times Spotted 248 | . 11 . . 5 39 21 . . 14 . 15 22 12 12 4 38 20 33 . 2 Peak Tracking Total 11 | . 6 . . 4 9 6 . 2 4 . 4 7 3 7 2 7 8 11 . . Tactical Retreats 17 | . 1 . . . 1 3 . . . . . 2 1 . . 4 2 3 . . Traps | -11 -10 -10 -10 -9 -8 -8 -8 -8 -7 -7 -7 -7 -6 -6 -6 -6 -5 -5 -5 -5 ------- Run | Scr Mat Min Exi Min Mat Gar Mat Gar Fac Gar Fac Gar Fac Gar Fac Gar Fac Gar Fac Upp Traps Triggered 11 | . 1 . . . . 2 . . 2 . . . 2 . . 3 . 1 . . Indirectly . | . . . . . . . . . . . . . . . . . . . . . Trap Hack Attempts . | . . . . . . . . . . . . . . . . . . . . . Triggered . | . . . . . . . . . . . . . . . . . . . . . Disarmed . | . . . . . . . . . . . . . . . . . . . . . Reprogrammed . | . . . . . . . . . . . . . . . . . . . . . Reused . | . . . . . . . . . . . . . . . . . . . . . Traps Extracted . | . . . . . . . . . . . . . . . . . . . . . Installed . | . . . . . . . . . . . . . . . . . . . . . Triggered . | . . . . . . . . . . . . . . . . . . . . . Machines | -11 -10 -10 -10 -9 -8 -8 -8 -8 -7 -7 -7 -7 -6 -6 -6 -6 -5 -5 -5 -5 ---------- Run | Scr Mat Min Exi Min Mat Gar Mat Gar Fac Gar Fac Gar Fac Gar Fac Gar Fac Gar Fac Upp Machines Disabled 26 | . . . . . 2 5 . 2 . 4 2 2 . 1 . 4 1 3 . . Max in Single Turn 1 | . . . . . 1 1 . 1 . 1 . 1 . 1 . 1 . 1 . . Garrison Relay 13 | . . . . . . 1 . 1 . 2 . 2 . 1 . 3 . 3 . . Machines Sabotaged . | . . . . . . . . . . . . . . . . . . . . . Garrisons Compromised . | . . . . . . . . . . . . . . . . . . . . . Overloaded Fab Kills . | . . . . . . . . . . . . . . . . . . . . . Hacking | -11 -10 -10 -10 -9 -8 -8 -8 -8 -7 -7 -7 -7 -6 -6 -6 -6 -5 -5 -5 -5 --------- Run | Scr Mat Min Exi Min Mat Gar Mat Gar Fac Gar Fac Gar Fac Gar Fac Gar Fac Gar Fac Upp Machines Accessed 43 | . . . 1 1 8 . 1 1 3 2 8 1 5 1 4 2 3 2 . . Terminals 27 | . . . . . 7 . . 1 1 2 4 1 3 1 2 2 1 2 . . Fabricators 7 | . . . . . . . . . 1 . 3 . 1 . 1 . 1 . . . Repair Stations . | . . . . . . . . . . . . . . . . . . . . . Recycling Units . | . . . . . . . . . . . . . . . . . . . . . Scanalyzers . | . . . . . . . . . . . . . . . . . . . . . Garrison Access 7 | . . . . . 1 . 1 . 1 . 1 . 1 . 1 . 1 . . . Total Hacks 87 | . . . 1 1 21 . 1 3 4 4 20 1 10 1 8 3 6 3 . . Successful 49 | . . . 1 1 5 . 1 1 3 3 14 1 8 1 4 2 4 . . . Failed 38 | . . . . . 16 . . 2 1 1 6 . 2 . 4 1 2 3 . . Catastrophic 8 | . . . . . 3 . . . 1 . . . . . 1 . . 3 . . Database Lockouts . | . . . . . . . . . . . . . . . . . . . . . Manual 40 | . . . 1 . 10 . . 2 2 1 12 1 6 . 2 2 . 1 . . Terminals 63 | . . . . . 20 . . 3 2 4 11 1 7 1 5 3 3 3 . . Fabricators 14 | . . . . . . . . . 1 . 8 . 1 . 2 . 2 . . . Repair Stations . | . . . . . . . . . . . . . . . . . . . . . Recycling Units . | . . . . . . . . . . . . . . . . . . . . . Scanalyzers . | . . . . . . . . . . . . . . . . . . . . . Garrison Access 8 | . . . . . 1 . 1 . 1 . 1 . 2 . 1 . 1 . . . Terminal Hacks 24 | . . . 1 1 4 . . 1 1 3 4 1 4 1 . 2 1 . . . Robot Schematic 1 | . . . . . . . . . . . 1 . . . . . . . . . Robot Analysis 1 | . . . . . 1 . . . . . . . . . . . . . . . Open Door 2 | . . . . 1 . . . . . 1 . . . . . . . . . . Emergency Access Points 3 | . . . . . . . . 1 . 1 . . . . . 1 . . . . Terminal Index 4 | . . . . . 1 . . . 1 . 1 . 1 . . . . . . . Garrison Index 3 | . . . . . . . . . . . 1 . 1 . . . 1 . . . Unreport Threat 2 | . . . . . . . . . . . . . 2 . . . . . . . Registered Components 1 | . . . . . . . . . . . 1 . . . . . . . . . Zone Layout 2 | . . . . . 2 . . . . . . . . . . . . . . . Garrison Registry 4 | . . . . . . . . . . 1 . 1 . 1 . 1 . . . . EX-Prototype ID Bank 1 | . . . 1 . . . . . . . . . . . . . . . . . Fabricator Hacks 11 | . . . . . . . . . 1 . 5 . 1 . 2 . 2 . . . Network Status 4 | . . . . . . . . . 1 . 1 . 1 . . . 1 . . . Load Schematic 3 | . . . . . . . . . . . 2 . . . 1 . . . . . Build 4 | . . . . . . . . . . . 2 . . . 1 . 1 . . . Repair Station Hacks . | . . . . . . . . . . . . . . . . . . . . . Recycling Unit Hacks . | . . . . . . . . . . . . . . . . . . . . . Scanalyzer . | . . . . . . . . . . . . . . . . . . . . . Garrison Access Hacks 7 | . . . . . 1 . 1 . 1 . 1 . 1 . 1 . 1 . . . Unlock Access 7 | . . . . . 1 . 1 . 1 . 1 . 1 . 1 . 1 . . . Unauthorized Hacks 7 | . . . . . . . . . . . 4 . 2 . 1 . . . . . Terminals 5 | . . . . . . . . . . . 2 . 2 . 1 . . . . . Assimilate 1 | . . . . . . . . . . . . . 1 . . . . . . . Botnet 1 | . . . . . . . . . . . 1 . . . . . . . . . Operators 3 | . . . . . . . . . . . 1 . 1 . 1 . . . . . Fabricators 2 | . . . . . . . . . . . 2 . . . . . . . . . Prioritize 1 | . . . . . . . . . . . 1 . . . . . . . . . Liberate 1 | . . . . . . . . . . . 1 . . . . . . . . . Repair Stations . | . . . . . . . . . . . . . . . . . . . . . Recycling Units . | . . . . . . . . . . . . . . . . . . . . . Scanalyzers . | . . . . . . . . . . . . . . . . . . . . . Garrison Access . | . . . . . . . . . . . . . . . . . . . . . Data Cores Recovered . | . . . . . . . . . . . . . . . . . . . . . Used . | . . . . . . . . . . . . . . . . . . . . . Hacking Detections 31 | . . . . . 7 . . 1 3 . 5 1 5 1 2 2 2 2 . . Full Trace Events 3 | . . . . . 1 . . 1 . . 1 . . . . . . . . . Feedback Events 1 | . . . . . . . . 1 . . . . . . . . . . . . Hackware Fried 1 | . . . . . . . . 1 . . . . . . . . . . . . Feedback Blocked . | . . . . . . . . . . . . . . . . . . . . . Robot Schematics Acquired 1 | . . . . . . . . . . . 1 . . . . . . . . . Robots Built 6 | . . . . . . . . . . . 4 . . . 2 . . . . . Authchips 3 | . . . . . . . . . . . 2 . . . 1 . . . . . Time 245 | . . . . . . . . . . . 201 . . . 44 . . . . . Total Robot Build Rating 24 | . . . . . . . . . . . 16 . . . 8 . . . . . Part Schematics Acquired . | . . . . . . . . . . . . . . . . . . . . . Parts Built 1 | . . . . . . . . . . . . . . . . . 1 . . . Authchips . | . . . . . . . . . . . . . . . . . . . . . Time 128 | . . . . . . . . . . . . . . . . . 128 . . . Total Part Build Rating 8 | . . . . . . . . . . . . . . . . . 8 . . . Parts Repaired . | . . . . . . . . . . . . . . . . . . . . . Time . | . . . . . . . . . . . . . . . . . . . . . Parts Recycled . | . . . . . . . . . . . . . . . . . . . . . Recycled Matter . | . . . . . . . . . . . . . . . . . . . . . Retrieved Matter . | . . . . . . . . . . . . . . . . . . . . . Retrieved Components . | . . . . . . . . . . . . . . . . . . . . . Parts Scanalyzed . | . . . . . . . . . . . . . . . . . . . . . Part Schematics Acquired . | . . . . . . . . . . . . . . . . . . . . . Parts Damaged . | . . . . . . . . . . . . . . . . . . . . . Bothacking | -11 -10 -10 -10 -9 -8 -8 -8 -8 -7 -7 -7 -7 -6 -6 -6 -6 -5 -5 -5 -5 ------------ Run | Scr Mat Min Exi Min Mat Gar Mat Gar Fac Gar Fac Gar Fac Gar Fac Gar Fac Gar Fac Upp Used RIF Installer 6 | . . . . . . 1 . 1 . 1 . 1 . 1 . 1 . . . . Hotswap 1 | . . . . . . . . 1 . . . . . . . . . . . . Watcher Feeds 1 | . . . . . . . . . . . . . . . . 1 . . . . Alert ID Control 1 | . . . . . . . . . . . . 1 . . . . . . . . Structural Interface 1 | . . . . . . . . . . . . . . 1 . . . . . . Autooverride 1 | . . . . . . . . . . 1 . . . . . . . . . . Robots Hacked 66 | . . . . . . . . . 10 . 7 3 7 2 3 17 10 7 . . Non-combat 17 | . . . . . . . . . 5 . 3 . 4 . . . 5 . . . Combat 49 | . . . . . . . . . 5 . 4 3 3 2 3 17 5 7 . . Autooverrided 12 | . . . . . . . . . . . 2 . . . 1 4 2 3 . . Robot Hacks Applied 60 | . . . . . . . . . 12 . 6 3 7 2 3 13 10 4 . . no_distress 1 | . . . . . . . . . . . . . . . . . 1 . . . map_walls 1 | . . . . . . . . . . . . . 1 . . . . . . . drop_inventory 3 | . . . . . . . . . 1 . . . . . . . 2 . . . ignore_parts 1 | . . . . . . . . . . . . . . . . . 1 . . . purge_threat 2 | . . . . . . . . . 1 . 1 . . . . . . . . . map_route 5 | . . . . . . . . . 2 . 2 . 1 . . . . . . . relay_feed 1 | . . . . . . . . . 1 . . . . . . . . . . . find_garrison 1 | . . . . . . . . . . . . . . . 1 . . . . . disrupt_area 1 | . . . . . . . . . . . . . . 1 . . . . . . reboot_system 4 | . . . . . . . . . 1 . . 1 . . . . 2 . . . overwrite_iff 17 | . . . . . . . . . 3 . 1 2 1 1 . 7 . 2 . . streamctrl_high 1 | . . . . . . . . . . . . . . . . . 1 . . . formatsys_low 5 | . . . . . . . . . 2 . 1 . 1 . . . 1 . . . formatsys_high 17 | . . . . . . . . . 1 . 1 . 3 . 2 6 2 2 . . Relay Couplers Released 53 | . . . . . . 4 . 5 . 9 . 7 . 4 . 13 . 11 . . Machine Destruction 53 | . . . . . . 4 . 5 . 9 . 7 . 4 . 13 . 11 . . Attached 38 | . . . . . . 1 . . 3 1 2 2 6 . 1 9 5 8 . . Fabnet Peak Effective % . | . . . . . . . . . . . . . . . . . . . . . Robots Rewired 12 | . . . . . . . . . . 3 . 9 . . . . . . . . Allies Hacked 3 | . . . . . . . . . . . . 2 . . . . 1 . . . Hacks Repelled . | . . . . . . . . . . . . . . . . . . . . . Allies | -11 -10 -10 -10 -9 -8 -8 -8 -8 -7 -7 -7 -7 -6 -6 -6 -6 -5 -5 -5 -5 -------- Run | Scr Mat Min Exi Min Mat Gar Mat Gar Fac Gar Fac Gar Fac Gar Fac Gar Fac Gar Fac Upp Total Allies 88 | . . . . 3 . . . . 6 5 16 15 5 1 5 19 6 7 . . Largest Group 16 | . . . . 3 3 . . . 3 8 16 16 4 4 4 4 2 3 . . Highest-Rated Group 490 | . . . . 40 39 . . . 81 186 464 490 67 67 135 179 144 139 . . Highest-Rated Ally 137 | . . . . 16 16 . . . 32 32 37 62 29 26 47 95 137 49 . . Total Orders 2 | . . . . . . . . . 1 . . . 1 . . . . . . . AID 2 | . . . . . . . . . 1 . . . 1 . . . . . . . Ally Attacks 382 | . . . . 6 14 . . . 15 . 91 122 8 8 4 69 21 24 . . Total Damage 9887 | . . . . 68 164 . . . 206 . 2442 3398 118 71 136 1638 994 652 . . Kills 75 | . . . . 3 2 . . . 2 . 19 33 1 1 . 9 3 2 . . Allies Corrupted . | . . . . . . . . . . . . . . . . . . . . . Allies Melted 2 | . . . . . . . . . . . . . . . . 2 . . . . Intel | -11 -10 -10 -10 -9 -8 -8 -8 -8 -7 -7 -7 -7 -6 -6 -6 -6 -5 -5 -5 -5 ------- Run | Scr Mat Min Exi Min Mat Gar Mat Gar Fac Gar Fac Gar Fac Gar Fac Gar Fac Gar Fac Upp Robot Analysis Total 1 | . . . . . 1 . . . . . . . . . . . . . . . Derelict Logs Recovered 1 | . . . . 1 . . . . . . . . . . . . . . . . Drone Launches 4 | . . . . . . . . . . . . . . . . 4 . . . . Drone Recoveries 3 | . . . . . . . . . . . . . . . . 3 . . . . Exploration | -11 -10 -10 -10 -9 -8 -8 -8 -8 -7 -7 -7 -7 -6 -6 -6 -6 -5 -5 -5 -5 ------------- Run | Scr Mat Min Exi Min Mat Gar Mat Gar Fac Gar Fac Gar Fac Gar Fac Gar Fac Gar Fac Upp Turns Passed 9674 | 5 204 65 243 237 1272 1072 8 322 777 523 820 777 657 293 412 899 558 476 12 42 Spaces Moved 6246 | 3 113 59 217 194 565 720 5 193 438 294 434 417 450 189 267 583 423 527 35 120 Core 317 | . . . . . . 294 . . . . . . . . . . . 23 . . Treads 3011 | . . . . . 273 426 5 193 438 294 434 417 268 94 95 74 . . . . Legs 367 | . . . . . . . . . . . . . . . . 139 228 . . . Wheels 1566 | 3 113 59 217 194 292 . . . . . . . . . 172 370 146 . . . Hover 728 | . . . . . . . . . . . . . 182 95 . . 49 402 . . Flight 257 | . . . . . . . . . . . . . . . . . . 102 35 120 Fastest Speed 32 | 95 95 110 110 110 110 50 160 160 160 160 160 160 60 60 100 100 66 32 35 35 Average Speed 125 | 95 108 110 110 110 156 115 160 160 160 160 160 160 126 115 124 117 104 59 35 35 Slowest Speed 250 | 95 110 110 110 110 240 240 160 160 160 160 160 160 160 170 170 240 115 250 35 35 Overloaded Moves . | . . . . . . . . . . . . . . . . . . . . . Propulsion Burnouts . | . . . . . . . . . . . . . . . . . . . . . Robots Hopped 1 | . . . . . . . . . . . . . . . . . . 1 . . Cave-ins Triggered . | . . . . . . . . . . . . . . . . . . . . . Exploration Rate (%) 34 | 3 31 15 61 49 81 72 2 29 14 59 12 55 12 39 11 65 22 59 1 23 Regions Visited 20 Branch Regions 4 Pre-discovered Areas . | . . . . . . . . . . . . . . . . . . . . . Known Exits Taken 7 | . . . . . 1 . 1 . 1 . 1 . 1 . 1 . 1 . . . Unknown Exits Taken 6 | 1 1 1 1 1 . . . . . . . . . . . . . . 1 . Scrap Searched 1 | . . . . 1 . . . . . . . . . . . . . . . . Spaces Dug 26 | . . . . . 4 13 . . . . . . 2 . 1 1 5 . . . Terrain Destroyed 146 | . . . . . 106 31 . . . . . . 2 . 1 1 5 . . . Melee 14 | . . . . . 4 1 . . . . . . 2 . 1 1 5 . . . Projectile 1 | . . . . . . 1 . . . . . . . . . . . . . . AOE 131 | . . . . . 102 29 . . . . . . . . . . . . . . Terrain Rammed . | . . . . . . . . . . . . . . . . . . . . . Walls Destroyed . | . . . . . . . . . . . . . . . . . . . . . Machines Disabled . | . . . . . . . . . . . . . . . . . . . . . Actions | -11 -10 -10 -10 -9 -8 -8 -8 -8 -7 -7 -7 -7 -6 -6 -6 -6 -5 -5 -5 -5 --------- Run | Scr Mat Min Exi Min Mat Gar Mat Gar Fac Gar Fac Gar Fac Gar Fac Gar Fac Gar Fac Upp Total 7605 | 6 157 59 222 214 845 872 5 203 490 344 545 510 515 247 336 734 505 642 34 120 Wait 442 | . 11 . . 4 156 30 . . 5 17 82 14 19 6 32 28 14 24 . . Move 6229 | 2 112 58 216 193 565 719 5 192 438 293 434 416 449 188 266 582 423 524 34 120 Hop 1 | . . . . . . . . . . . . . . . . . . 1 . . Pick Up 111 | . 5 1 3 7 12 13 . 4 1 10 . 5 4 11 5 15 6 9 . . Fast Attach 51 | . 2 . . . 9 10 . . 3 1 . . 1 2 3 11 4 5 . . Attach 77 | 2 1 . 1 . 7 6 . . 4 1 4 1 7 8 3 12 8 12 . . Detach 9 | . . . . . 1 2 . . . . . . 1 3 . . 1 1 . . Swap 40 | . . . . 2 9 7 . 1 5 . 4 1 5 1 2 2 . 1 . . Drop 88 | 2 2 . 2 4 15 13 . 2 2 6 2 . 3 6 10 11 2 6 . . Fire 244 | . 23 . . 3 53 40 . 3 28 3 15 4 17 12 6 17 13 7 . . Melee 227 | . . . . . 17 32 . 1 3 4 2 14 9 10 9 56 33 37 . . Ram 4 | . 1 . . 1 1 . . . . . . . . . . . . 1 . . Kick . | . . . . . . . . . . . . . . . . . . . . . Crush 3 | . . . . . . . . . 1 . 2 . . . . . . . . . Escape Stasis 17 | . . . . . . . . . . . . 3 . . . . . 14 . . Rewire 62 | . . . . . . . . . . 9 . 52 . . . . 1 . . . Trap . | . . . . . . . . . . . . . . . . . . . . . Miscellaneous . | . . . . . . . . . . . . . . . . . . . . . Route ------- -11/Scrapyard -10/Materials -10/Mines (discovered 2 exits: [*Mat] / *Exi) -10/Exiles -9/Mines -8/Materials (discovered 2 exits: *Fac / Gar) -8/Garrison (discovered 3 exits: *Mat x3) -8/Materials -8/Garrison -7/Factory -7/Garrison (discovered 3 exits: *Fac x3) -7/Factory -7/Garrison (discovered 3 exits: *Fac x3) -6/Factory -6/Garrison (discovered 4 exits: *Fac x4) -6/Factory (discovered 2 exits: *Fac / Gar) -6/Garrison (discovered 4 exits: *Fac x3 / [*Fac]) -5/Factory (discovered 3 exits: [*Fac] / [*Upp] / Gar) -5/Garrison -5/Factory -5/Upper Caves History --------- Turn | Location | Event 4 | -11/Scrapyard | Discovered new exit (range 2) 6 | -11/Scrapyard | Entered Materials 90 | -10/Materials | Discovered new exit (range 16) 210 | -10/Materials | Entered Mines 216 | -10/Mines | Met a Derelict bent on vengeance 231 | -10/Mines | Received a Rocket Launcher from a helpful Derelict 252 | -10/Mines | Discovered new exit (range 7) 270 | -10/Mines | Deemed a non-threat by the Exiles lab entrance 271 | -10/Mines | Discovered new exit (range 5) 275 | -10/Mines | Entered Exiles 303 | -10/Exiles | Met 8R-AWN 314 | -10/Exiles | Build established: Mutant 322 | -10/Exiles | Met EX-HEX 350 | -10/Exiles | Met EX-BIN 363 | -10/Exiles | Aligned with FarCom system 365 | -10/Exiles | Given EX-Vault access code 393 | -10/Exiles | Opened EX-Vault 400 | -10/Exiles | Found Longsword +1 405 | -10/Exiles | Found Gui. Plasma Cannon 409 | -10/Exiles | Found Army-in-a-Box 432 | -10/Exiles | Warned to stay clear of 0b10 Research branches 466 | -10/Exiles | Met EX-DEC 508 | -10/Exiles | Discovered new exit (range 10) 518 | -10/Exiles | Stole three prototypes: Army-in-a-Box, Gui. Plasma Cannon, Longsword +1 518 | -10/Exiles | Entered Mines 558 | -9/Mines | Assisted by bots powering up and referring to "LRC-V3" 617 | -9/Mines | Found the Drone Emporium 622 | -9/Mines | Found Prototype Device 694 | -9/Mines | Learned Materials trap positions 704 | -9/Mines | Discovered new exit (range 8) 723 | -9/Mines | Joined a pair of Derelicts in attacking an 0b10 outpost 755 | -9/Mines | Entered Materials 755 | -8/Materials | Accompanied by 3 allies 755 | -8/Materials | Evolved 4 slots: Utility x4 756 | -8/Materials | Loaded intel: 11 trap records 758 | -8/Materials | Identified Thief Drone Bay 1121 | -8/Materials | Build established: Hacker-Mutant 1341 | -8/Materials | Discovered new exit (range 14) 1979 | -8/Materials | Garrison activated, responded to threat 2027 | -8/Materials | Identified exit to Garrison 2027 | -8/Materials | Entered Garrison 2119 | -8/Garrison | Triggered checkpoint 2121 | -8/Garrison | Triggered checkpoint 2182 | -8/Garrison | Destroyed 11 combat bots 2237 | -8/Garrison | Discovered new exit (range 15) 2281 | -8/Garrison | Triggered checkpoint 2387 | -8/Garrison | Core integrity fell below 50% 2428 | -8/Garrison | Lost 3 parts (1n2w) 2596 | -8/Garrison | Discovered new exit (range 13) 2614 | -8/Garrison | Identified exit to Materials 2694 | -8/Garrison | Triggered checkpoint 2701 | -8/Garrison | Triggered checkpoint 2726 | -8/Garrison | Discovered exit to Materials (range 10) 2773 | -8/Garrison | Core integrity fell below 20% 2892 | -8/Garrison | Triggered checkpoint 2919 | -8/Garrison | Installed Relay Interface Framework 3034 | -8/Garrison | Garrison Relay disabled 3099 | -8/Garrison | Entered Materials 3107 | -8/Materials | Identified exit to Garrison 3107 | -8/Materials | Entered Garrison 3189 | -8/Garrison | Triggered checkpoint 3210 | -8/Garrison | Triggered checkpoint 3230 | -8/Garrison | Garrison Relay disabled 3349 | -8/Garrison | Expanded RIF knowledge: Hotswap 3381 | -8/Garrison | Hacking Suite fried by hacking feedback 3412 | -8/Garrison | Discovered new exit (range 12) 3429 | -8/Garrison | Entered Factory 3429 | -7/Factory | Evolved 2 slots: Utility x2 3431 | -7/Factory | FarCom data flow suspended 3527 | -7/Factory | Build established: Bothacker-Mutant 4206 | -7/Factory | Identified exit to Garrison 4206 | -7/Factory | Entered Garrison 4206 | -7/Garrison | Discovered recently destroyed garrison 4206 | -7/Garrison | Accompanied by 3 allies 4288 | -7/Garrison | Expanded RIF knowledge: Autooverride 4380 | -7/Garrison | Build established: Hacker-Mutant 4392 | -7/Garrison | Garrison Relay disabled 4510 | -7/Garrison | Discovered new exit (range 27) 4510 | -7/Garrison | Discovered new exit (range 40) 4510 | -7/Garrison | Discovered new exit (range 52) 4593 | -7/Garrison | Rescued a captive Derelict 4594 | -7/Garrison | Rescued a captive Derelict 4673 | -7/Garrison | Garrison Relay disabled 4704 | -7/Garrison | Build established: Bothacker-Mutant 4729 | -7/Garrison | Entered Factory 4729 | -7/Factory | Accompanied by 8 allies 5204 | -7/Factory | Fabricated P-60 Hacker (x2) 5271 | -7/Factory | Fabricated P-60 Hacker? 5530 | -7/Factory | Identified exit to Garrison 5549 | -7/Factory | Entered Garrison 5549 | -7/Garrison | Accompanied by 15 allies 5552 | -7/Garrison | Triggered checkpoint 5586 | -7/Garrison | Triggered checkpoint 5596 | -7/Garrison | Triggered checkpoint 5648 | -7/Garrison | Found embedded Infiltrators 5853 | -7/Garrison | Garrison Relay disabled 5911 | -7/Garrison | Garrison Relay disabled 5954 | -7/Garrison | Triggered checkpoint 5956 | -7/Garrison | Triggered checkpoint 5959 | -7/Garrison | Hacker 4d assimilated hostile G-47 Trooper 5992 | -7/Garrison | Triggered checkpoint 6048 | -7/Garrison | Expanded RIF knowledge: Alert ID Control 6088 | -7/Garrison | Triggered checkpoint 6174 | -7/Garrison | Discovered new exit (range 12) 6240 | -7/Garrison | Triggered checkpoint 6289 | -7/Garrison | Discovered new exit (range 55) 6289 | -7/Garrison | Discovered new exit (range 18) 6289 | -7/Garrison | Discovered new exit (range 44) 6326 | -7/Garrison | Entered Factory 6326 | -6/Factory | Evolved 2 slots: Utility x2 6343 | -6/Factory | Build established: Botlord-Mutant 6460 | -6/Factory | Identified exit to Garrison 6727 | -6/Factory | System corruption reached 10% 6757 | -6/Factory | Lost 3 parts (3u) 6983 | -6/Factory | Entered Garrison 6983 | -6/Garrison | Accompanied by 4 allies 6995 | -6/Garrison | Discovered new exit (range 56) 6995 | -6/Garrison | Discovered new exit (range 59) 6995 | -6/Garrison | Discovered new exit (range 48) 6995 | -6/Garrison | Discovered new exit (range 19) 7063 | -6/Garrison | Build established: Bothacker-Mutant 7075 | -6/Garrison | Destroyed 10 combat bots 7089 | -6/Garrison | Expanded RIF knowledge: Structural Interface 7101 | -6/Garrison | Lost 4 parts (3u1w) 7138 | -6/Garrison | Triggered checkpoint 7158 | -6/Garrison | Garrison Relay disabled 7276 | -6/Garrison | Entered Factory 7471 | -6/Factory | Build established: Botlord-Mutant 7494 | -6/Factory | Discovered new exit (range 16) 7631 | -6/Factory | Identified exit to Garrison 7670 | -6/Factory | Fabricated P-60 Hacker (x2) 7688 | -6/Factory | Entered Garrison 7688 | -6/Garrison | Accompanied by 4 allies 7760 | -6/Garrison | Triggered checkpoint 7814 | -6/Garrison | Garrison Relay disabled 7884 | -6/Garrison | Triggered checkpoint 7926 | -6/Garrison | Core integrity fell below 50% 7959 | -6/Garrison | Lost 6 parts (1p2n2u1w) 8029 | -6/Garrison | Expanded RIF knowledge: Watcher Feeds 8037 | -6/Garrison | Discovered new exit (range 12) 8132 | -6/Garrison | Triggered checkpoint 8177 | -6/Garrison | Discovered new exit (range 6) 8270 | -6/Garrison | Triggered checkpoint 8310 | -6/Garrison | Garrison Relay disabled 8396 | -6/Garrison | Triggered checkpoint 8454 | -6/Garrison | Found embedded Infiltrators 8466 | -6/Garrison | Triggered checkpoint 8489 | -6/Garrison | Discovered new exit (range 43) 8489 | -6/Garrison | Discovered new exit (range 18) 8489 | -6/Garrison | Discovered new exit (range 65) 8489 | -6/Garrison | Discovered new exit (range 30) 8498 | -6/Garrison | Garrison Relay disabled 8587 | -6/Garrison | Entered Factory 8587 | -5/Factory | Accompanied by 1 ally 8587 | -5/Factory | Evolved 2 slots: Utility x2 8775 | -5/Factory | Spotted B-75 Beast 8805 | -5/Factory | Fabricated Enh. Force Lance? 8814 | -5/Factory | Destroyed B-75 Beast 8982 | -5/Factory | Lost 4 parts (3u1w) 9038 | -5/Factory | Discovered new exit (range 7) 9131 | -5/Factory | Discovered new exit (range 4) 9139 | -5/Factory | Lost 4 parts (1p2n1u) 9145 | -5/Factory | Identified exit to Garrison 9145 | -5/Factory | Entered Garrison 9246 | -5/Garrison | Garrison Relay disabled 9265 | -5/Garrison | Garrison Relay disabled 9358 | -5/Garrison | Triggered checkpoint 9358 | -5/Garrison | Garrison Relay disabled 9417 | -5/Garrison | Spotted B-75 Beast 9422 | -5/Garrison | Triggered checkpoint 9422 | -5/Garrison | Triggered checkpoint 9427 | -5/Garrison | Triggered checkpoint 9447 | -5/Garrison | Discovered new exit (range 14) 9450 | -5/Garrison | Spotted B-75 Beast 9480 | -5/Garrison | Triggered checkpoint 9488 | -5/Garrison | Core integrity fell below 50% 9562 | -5/Garrison | Triggered checkpoint 9570 | -5/Garrison | Core integrity fell below 20% 9616 | -5/Garrison | Spotted B-75 Beast 9621 | -5/Garrison | Entered Factory 9624 | -5/Factory | Discovered new exit (range 16) 9633 | -5/Factory | Entered Upper Caves 9647 | -5/Upper Caves | Lost 12 parts (5n5u2w) 9675 | -5/Upper Caves | Destroyed by H-66 Slayer with Gauss Rifle Last Messages --------------- 09586_ System corrupted: Matter fused (-10). 09591_ Acquired 10 matter. 09592_ Acquired VTOL Module. 09601_ Acquired 10 matter. 09602_ Acquired VTOL Module. 09602_ Relay Coupler [Swarmer] destroyed. 09604_ Acquired 5 matter. 09604_ RIF reveals location of phase wall. 09616_ VTOL Module destroyed. 09621_ Attempting to access garrison exit controls... RIF authorized. LOCATION=UNKNOWN GOAL=ESCAPE 09624_ EXIT=FOUND LOCATION=UNKNOWN GOAL=ESCAPE 09634_ XV-B66(k) breaks down the debris. 09634_ QL-FFY(k) breaks down the debris. 09641_ 1L|YFNRMC>3ITSX2TAYH3 H8KI 09660_ BLEHWBMBXI:1U1BEVMCUXZ,QI Map ----- +----------------------------------------------------+ | ?????????????????????????????????????????????????? | | ????????????????????????????????????????????####?? | | ??????????????????????????????????????????### #?? | | ??????????????????????????????????????????# #??? | | ??????????????????????????????????????????# #??? | | ??????????????????????????????????????????## #### | | ??????????????????????????????????????????## | | ??????????????????????????????????????????# | | ????????????????????????????????????????### | | ???????????????????????????????????????## | | ???????????????????????????????????????# | | ???????????????????????????????????????# | | ???????????????????????????????????????# | | ???????????????????????????????????????# ## | | ??????????????????????????????????????## ###? | | ??????????????????????????????????????# ##??? | | ??????????????????????????????????????# ##???? | | ?????????????????????????????????###??# ##????? | | ???????????? #???#####??????????# #### #?????? | | ???????????? ### #?#####???# #### #?????? | | ???????????? hh ## #???### ### ####??? | | ????????????? #?????## ##?? | | ???????????????# ##?????## ### | | ??????????????## #??????# | | ??????????????# #??????## | | ???????????????????# @ ######### | | ???????????????????# ## ## ## ### | | ???????????????????# ???# ### ###### | | ???????????????????#?????# #?####???# | | ?????????????????????????# #???????## | | ?????????????????????????## ### #####?### | | ??????????????????????????####?#### ### | | ??????????????????????????????????## | | ???????????????????????????????????# ## | | ???????????????????????????????????# ### ####? | | ???????????????????????????????????#####?#####???? | | ?????????????????????????????????????????????????? | | ?????????????????????????????????????????????????? | | ?????????????????????????????????????????????????? | | ?????????????????????????????????????????????????? | | ?????????????????????????????????????????????????? | | ?????????????????????????????????????????????????? | | ?????????????????????????????????????????????????? | | ?????????????????????????????????????????????????? | | ?????????????????????????????????????????????????? | | ?????????????????????????????????????????????????? | | ?????????????????????????????????????????????????? | | ?????????????????????????????????????????????????? | | ?????????????????????????????????????????????????? | | ?????????????????????????????????????????????????? | +----------------------------------------------------+ Best States ------------- Heat Dissipation 51 Energy Generation 19 Energy Capacity 315 Matter Stores 300 Matter Capacity 300 Sight Range 20 Terrain Scan Density 10 Armor Coverage 300 Power Shielding 33 Evasion (%) 63 Targeting Accuracy 6 Melee Accuracy 6 Recoil Reduction 2 Salvage Targeting 1 Offensive Hacking 30 Defensive Hacking 20 Relay Coupler Types 6 Relay Coupler Value 260 Authchip Count 4 Item Schematics ----------------- None Robot Schematics ------------------ P-60 Hacker | -7/Factory | Hacked Fabricated ------------ P-60 Hacker | x2 | -7/Factory | Authchip P-60 Hacker | x2 | -7/Factory | Authchip P-60 Hacker | x2 | -6/Factory | Authchip Enh. Force Lance | x1 | -5/Factory | Preloaded Alien Tech Used ----------------- None Achievements -------------- None Challenges ------------ None Game ------ Seed FireMinesnifferTearclaws Manual? 0 Play Time 01:55:13 Cumulative 255.6 hours Start 2022.07.26 @ 07:26:10 End 2022.07.26 @ 11:02:17 Sessions 3 Manual Loads 0 Difficulty Rogue Special Mode None Game No. 304 Rogue 304 Adventurer 0 Explorer 0 Win Type - Total 11 Types 8/0/2/1/0/0/0/0/0 Lore% 70 Gallery% 86 Achievement% 74 Wizard Run 0 Options --------- ASCII 0 Keyboard 0 Movement Numpad Keybinds 0 Fullscreen 1 Font 18/Terminus Map View 76x50 Tactical HUD 1 Map Filters NONE Filters NONE Steam 1 RUN: 68f2fc23-e695-47de-821f-f1172d7f8145